bitfinex/quotes_ETHUSD_20230118
["timestamp","ask_amount","ask_price","bid_price","bid_amount"]
[1674019290023,4.29862407,1586.9,1586.8,3.12982216]
[1674019290484,23.43339407,1586.9,1586.8,3.12982216]
[1674019293911,24.62739407,1586.9,1586.8,3.12982216]
[1674019294327,24.65164356,1586.9,1586.8,3.12982216]
[1674019294547,27.99681775,1586.9,1586.8,3.12982216]
[1674019298781,27.76681775,1586.9,1586.8,3.12982216]
[1674019300038,26.58481775,1586.9,1586.8,3.12982216]
[1674019300882,26.58133625,1586.9,1586.8,3.12982216]
[1674019307379,23.30070734,1586.9,1586.8,3.12982216]
[1674019312000,10.67327785,1586.9,1586.8,3.12982216]
[1674019312214,9.47927785,1586.9,1586.8,3.12982216]
[1674019315227,15.78086785,1586.9,1586.8,3.12982216]
[1674019316307,22.31245785,1586.9,1586.8,3.12982216]
[1674019316473,26.55316819,1586.9,1586.8,3.12982216]
[1674019318276,27.21235378,1586.9,1586.8,3.12982216]
[1674019318486,26.55316819,1586.9,1586.8,3.12982216]
[1674019320165,27.21235378,1586.9,1586.8,3.12982216]
[1674019322581,27.23660327,1586.9,1586.8,3.12982216]
[1674019323961,28.22655125,1586.9,1586.8,3.12982216]
[1674019324536,28.22847042,1586.9,1586.8,3.12982216]
[1674019324684,27.56736566,1586.9,1586.8,3.12982216]
[1674019325061,28.22846397,1586.9,1586.8,3.12982216]
[1674019325423,28.22846397,1586.9,1586.8,3.12740411]
[1674019326196,28.22853354,1586.9,1586.8,3.12740411]
[1674019327093,27.89719638,1586.9,1586.8,3.12740411]
[1674019329038,27.56906337,1586.9,1586.8,3.12740411]
[1674019331987,28.88884207,1586.9,1586.8,3.12740411]
[1674019333167,27.56906337,1586.9,1586.8,3.12740411]
[1674019333792,27.89719638,1586.9,1586.8,3.12740411]
[1674019336055,29.54829346,1586.9,1586.8,3.12740411]
[1674019336261,27.89719638,1586.9,1586.8,3.12740411]
[1674019338239,29.54829346,1586.9,1586.8,3.12740411]
[1674019339339,31.22851476,1586.9,1586.8,3.12740411]
[1674019339505,32.55028697,1586.9,1586.8,3.12740411]
[1674019342543,31.89027924,1586.9,1586.8,3.12740411]
[1674019342756,31.89026696,1586.9,1586.8,3.12740411]
[1674019343963,30.89918989,1586.9,1586.8,3.12740411]
[1674019344805,32.55028697,1586.9,1586.8,3.12740411]
[1674019344997,31.22851476,1586.9,1586.8,3.12740411]
[1674019348764,31.22851476,1586.9,1586.8,3.12494614]
[1674019352328,41.64851476,1586.9,1586.7,0.02871615]
[1674019352540,11.78194053,1586.8,1586.6,0.06094397]
[1674019352799,30.84134583,1586.7,1586.6,0.06094397]
[1674019352963,30.84134583,1586.7,1586.5,0.03383869]
[1674019352964,31.13589111,1586.7,1586.5,0.03383869]
[1674019353175,9.1623968,1586.6,1586.5,0.03383869]
[1674019353420,27.08006995,1586.6,1586.5,0.03383869]
[1674019353632,28.0707368,1586.6,1586.5,0.03383869]
[1674019353962,26.41029223,1586.6,1586.5,0.03383869]
[1674019355480,28.36823572,1586.6,1586.5,0.03383869]
[1674019355736,27.37756887,1586.6,1586.5,0.03383869]
[1674019355925,29.02903385,1586.6,1586.5,0.03383869]
[1674019356275,32.02903385,1586.6,1586.5,0.03383869]
[1674019356700,30.37756887,1586.6,1586.5,0.03383869]
[1674019356853,30.04663609,1586.6,1586.5,0.03383869]
[1674019359339,31.23163609,1586.6,1586.5,0.03383869]
[1674019359680,30.90142612,1586.6,1586.5,0.03383869]
[1674019359889,29.70742612,1586.6,1586.5,0.03383869]
[1674019360205,30.6976951,1586.6,1586.5,0.03383869]
[1674019360374,29.40089436,1586.6,1586.5,0.03383869]
[1674019360584,31.91609612,1586.6,1586.5,0.03383869]
[1674019360799,32.55283785,1586.6,1586.5,0.03383869]
[1674019360997,31.23163609,1586.6,1586.5,0.03383869]
[1674019361205,32.55283785,1586.6,1586.5,0.03383869]
[1674019361464,32.61738313,1586.6,1586.5,0.03383869]
[1674019362359,31.62711415,1586.6,1586.5,0.03383869]
[1674019362627,32.61697196,1586.6,1586.5,0.03383869]
[1674019362776,31.62711415,1586.6,1586.5,0.03383869]
[1674019363430,30.30591239,1586.6,1586.5,0.03383869]
[1674019363849,1.0,1586.4,1586.3,0.11871648]
[1674019364073,40.08368706,1586.4,1586.3,0.11871648]
[1674019364251,38.43354017,1586.4,1586.3,0.11871648]
[1674019364465,37.23954017,1586.4,1586.3,0.11871648]
[1674019364672,38.22913614,1586.4,1586.3,0.11871648]
[1674019365145,36.90903917,1586.4,1586.3,0.11871648]
[1674019365302,35.37475941,1586.4,1586.3,0.11871648]
[1674019365512,31.56094407,1586.4,1586.3,0.11871648]
[1674019365768,28.56094407,1586.4,1586.3,0.11871648]
[1674019371016,28.62348935,1586.4,1586.3,0.05966366]
[1674019371230,28.62348935,1586.4,1586.3,0.05777251]
[1674019371231,28.62548935,1586.4,1586.3,0.05777251]
[1674019374653,18.97528528,1586.4,1586.3,2.29277251]
[1674019374873,6.36812528,1586.4,1586.3,3.72226063]
[1674019375296,0.06454528,1586.4,1586.3,3.72226063]
[1674019376446,1e-08,1586.4,1586.3,3.72226063]
[1674019376723,1e-08,1586.4,1586.3,7.53735347]
[1674019377040,1e-08,1586.4,1586.3,12.30985457]
[1674019377181,1e-08,1586.4,1586.3,13.95209784]
[1674019377634,1e-08,1586.4,1586.3,16.95209784]
[1674019378653,1e-08,1586.4,1586.3,15.30985457]
[1674019378861,1e-08,1586.4,1586.3,14.21523063]
[1674019380024,1e-08,1586.4,1586.3,1.48726063]
[1674019380230,1e-08,1586.4,1586.3,1.25177251]
[1674019380610,6.30358001,1586.4,1586.3,1.25177251]
[1674019381015,1e-08,1586.4,1586.3,1.25177251]
[1674019382817,1e-08,1586.4,1586.3,1.48577251]
[1674019382995,1e-08,1586.4,1586.3,0.05777251]
[1674019383934,1e-08,1586.4,1586.3,2.72855063]
[1674019384416,0.06493001,1586.4,1586.3,2.72855063]
[1674019386666,0.07493,1586.4,1586.3,2.72855063]
[1674019391617,9.49513407,1586.4,1586.3,0.05777251]
[1674019392091,15.79871407,1586.4,1586.3,0.05777251]
[1674019394993,15.80271408,1586.4,1586.3,0.05777251]
[1674019398180,3.19555408,1586.4,1586.3,0.05777251]
[1674019399888,3.18155407,1586.4,1586.3,0.05777251]
[1674019402074,0.06493,1586.4,1586.3,3.39884502]
[1674019402464,0.06400001,1586.5,1586.3,3.39884502]
[1674019402813,0.06400001,1586.5,1586.3,11.13081502]
[1674019402968,0.06400001,1586.5,1586.3,12.7728679]
[1674019403180,0.06400001,1586.5,1586.3,12.7727607]
[1674019403395,0.06400001,1586.5,1586.4,1.27727607]
[1674019403833,0.002,1586.5,1586.4,1.27727607]
[1674019404055,12.66727001,1586.7,1586.4,1.27727607]
[1674019404056,6.36662001,1586.7,1586.4,1.27727607]
[1674019404273,9.48324408,1586.7,1586.4,1.27727607]
[1674019404646,6.36662001,1586.7,1586.4,1.27727607]
[1674019404966,6.36662001,1586.7,1586.5,0.12772761]
[1674019405131,22.08822408,1586.7,1586.3,10.00581648]
[1674019408025,22.08822408,1586.7,1586.3,10.01447304]
[1674019409551,15.78560408,1586.7,1586.3,10.01447304]
[1674019411007,15.78560408,1586.7,1586.3,11.65649965]
[1674019411289,15.78560408,1586.7,1586.4,1.16564997]
[1674019413330,9.48300408,1586.7,1586.4,1.16564997]
[1674019419162,3.18062408,1586.7,1586.4,7.46921997]
[1674019421484,3.18062408,1586.7,1586.4,6.30357]
[1674019421694,3.11662407,1586.7,1586.4,6.36451397]
[1674019424544,14.3964595,1586.8,1586.4,6.36451397]
[1674019424757,8.07020001,1586.8,1586.5,1.09457872]
[1674019424997,8.07020001,1586.8,1586.6,6.41214787]
[1674019424998,0.06400001,1586.8,1586.6,6.41214787]
[1674019425576,7.02523025,1587.0,1586.6,6.47309184]
[1674019425786,3.11662407,1586.9,1586.6,6.47309184]
[1674019425997,3.11662407,1586.9,1586.7,0.64730918]
[1674019426206,3.11662407,1586.9,1586.6,6.47309184]
[1674019427074,3.11662407,1586.9,1586.6,6.4709306]
[1674019428559,3.11662407,1586.9,1586.6,12.7737106]
[1674019430071,0.06400001,1587.0,1586.6,0.1682406]
[1674019430304,0.06400001,1587.0,1586.6,12.7737106]
[1674019430305,3.18062408,1587.0,1586.6,12.7737106]
[1674019430958,3.11662407,1587.0,1586.6,12.7737106]
[1674019431431,3.11662407,1587.0,1586.7,1.21864791]
[1674019432357,3.11662407,1587.0,1586.6,23.9697106]
[1674019432532,10.07754431,1587.0,1586.6,23.9697106]
[1674019434697,10.07754431,1587.0,1586.6,23.86241397]
[1674019435631,9.41782407,1587.0,1586.6,23.86241397]
[1674019437831,3.11662407,1587.0,1586.6,23.86241397]
[1674019440632,3.77634431,1587.0,1586.6,23.86241397]
[1674019440838,3.11662407,1587.0,1586.6,23.86241397]
[1674019441086,3.11662407,1587.0,1586.6,34.79380737]
[1674019442678,3.11662407,1587.0,1586.6,28.49102737]
[1674019442891,3.11662407,1587.0,1586.6,29.68602737]
[1674019449727,3.77634431,1587.0,1586.6,29.68247296]
[1674019449903,10.07758431,1587.0,1586.6,25.05385956]
[1674019452163,11.06718028,1587.0,1586.6,18.75107956]
[1674019455009,11.06718028,1587.0,1586.6,17.55607956]
[1674019456161,0.65972024,1586.9,1586.6,17.55607956]
[1674019456646,11.06718028,1587.0,1586.6,17.55607956]
[1674019456863,14.32713195,1587.0,1586.6,17.55607956]
[1674019457878,13.33753598,1587.0,1586.6,17.55607956]
[1674019458053,10.07758431,1587.0,1586.6,17.55607956]
[1674019458206,10.07758431,1587.0,1586.6,19.19784728]
[1674019459066,10.07758431,1587.0,1586.6,17.55607956]
[1674019459067,11.06718028,1587.0,1586.6,17.55607956]
[1674019459279,0.65972024,1586.9,1586.6,17.55607956]
[1674019459845,0.65972024,1586.9,1586.6,17.55807956]
[1674019462149,0.65972024,1586.9,1586.6,19.19988934]
[1674019462336,0.65972024,1586.9,1586.6,17.55807956]
[1674019464118,0.65972024,1586.9,1586.6,19.19989788]
[1674019465514,0.65972024,1586.9,1586.6,17.55807956]
[1674019466256,1.64931621,1586.9,1586.6,17.55807956]
[1674019467160,10.07853431,1586.8,1586.6,0.05938956]
[1674019469088,3.11662407,1586.7,1586.6,0.05938956]
[1674019469365,16.38110431,1586.7,1586.6,0.05938956]
[1674019470628,10.07872431,1586.7,1586.6,0.05938956]
[1674019471215,9.41900407,1586.7,1586.6,0.05938956]
[1674019471360,11.1560351,1586.7,1586.6,0.05938956]
[1674019471922,11.81575534,1586.7,1586.6,0.05938956]
[1674019472754,11.1560351,1586.7,1586.6,0.05938956]
[1674019476303,11.81575534,1586.7,1586.6,0.05938956]
[1674019476537,11.81575534,1586.7,1586.6,0.05701791]
[1674019481286,11.1560351,1586.7,1586.6,0.05701791]
[1674019481462,11.87975535,1586.7,1586.4,10.83971791]
[1674019481670,18.18213535,1586.7,1586.4,10.83971791]
[1674019482884,17.52241511,1586.7,1586.4,10.83971791]
[1674019483184,11.22003511,1586.7,1586.4,10.83971791]
[1674019486546,9.48300408,1586.7,1586.4,10.83971791]
[1674019487590,3.11662407,1586.6,1586.4,10.83971791]
[1674019487806,10.61449407,1586.6,1586.4,0.06101791]
[1674019488274,10.67849408,1586.6,1586.3,9.18589042]
[1674019488490,13.07279151,1586.6,1586.3,9.18589042]
[1674019489138,13.73251175,1586.6,1586.3,9.18589042]
[1674019490008,13.07279151,1586.6,1586.3,9.18589042]
[1674019492996,3.11662407,1586.5,1586.3,9.18589042]
[1674019493264,9.41985407,1586.5,1586.3,9.18589042]
[1674019493793,9.41985407,1586.5,1586.3,0.11879042]
[1674019494000,11.98774322,1586.5,1586.3,0.11879042]
[1674019496156,3.11662407,1586.4,1586.3,0.11879042]
[1674019496530,9.42020407,1586.4,1586.3,0.11879042]
[1674019497413,9.48420408,1586.4,1586.3,0.05777251]
[1674019497619,25.9822144,1586.4,1586.3,0.05777251]
[1674019498894,12.1800544,1586.4,1586.3,0.05777251]
[1674019499111,5.8764744,1586.4,1586.3,0.05777251]
[1674019500623,12.1800544,1586.4,1586.3,0.05427378]
[1674019503968,18.4836344,1586.4,1586.3,0.05427378]
[1674019504771,26.64193464,1586.4,1586.3,0.05427378]
[1674019505413,28.15781037,1586.4,1586.3,0.05427378]
[1674019505677,28.81839149,1586.4,1586.3,0.05427378]
[1674019505879,27.82879552,1586.4,1586.3,0.05427378]
[1674019506397,27.1682144,1586.4,1586.3,0.05427378]
[1674019506615,27.82879552,1586.4,1586.3,0.05427378]
[1674019511462,27.82495672,1586.4,1586.3,0.05427378]
[1674019512395,16.01394528,1586.4,1586.3,0.05427378]
[1674019512726,9.71036528,1586.4,1586.3,0.05427378]
[1674019512929,9.71036528,1586.4,1586.3,1.15227378]
[1674019513101,9.71036528,1586.4,1586.3,0.05427378]
[1674019513516,9.71036528,1586.4,1586.3,1.15227378]
[1674019513517,3.40678528,1586.4,1586.3,1.15227378]
[1674019513726,0.06400001,1586.4,1586.3,1.27371203]
[1674019513944,1e-08,1586.4,1586.3,25.18771487]
[1674019514160,1e-08,1586.4,1586.3,29.28238131]
[1674019514530,1e-08,1586.4,1586.3,30.92481863]
[1674019514655,1e-08,1586.4,1586.3,50.27991863]
[1674019514869,1e-08,1586.4,1586.3,47.12223161]
[1674019515081,1e-08,1586.4,1586.3,53.1084432]
[1674019515286,1e-08,1586.4,1586.3,49.29335036]
[1674019515620,1e-08,1586.4,1586.3,48.30723161]
[1674019518702,1e-08,1586.4,1586.3,47.12223161]
[1674019519018,0.002,1586.4,1586.3,47.18324952]
[1674019520222,0.002,1586.4,1586.3,46.5258437]
[1674019521315,0.002,1586.4,1586.3,47.18324952]
[1674019522264,0.002,1586.4,1586.3,46.5258437]
[1674019524329,0.002,1586.4,1586.3,44.88340638]
[1674019524750,0.002,1586.4,1586.3,46.52531769]
[1674019524968,27.91733001,1586.9,1586.3,46.52531769]
[1674019524969,9.01200001,1586.9,1586.4,0.00281585]
[1674019525177,9.01200001,1586.9,1586.6,1.186]
[1674019525178,12.12862408,1586.9,1586.6,1.186]
[1674019525396,12.12862408,1586.9,1586.6,7.48865]
[1674019526367,9.01200001,1586.9,1586.8,1.195]
[1674019526687,9.01200001,1586.9,1586.8,7.61649]
[1674019527062,9.01400001,1586.9,1586.8,7.67750791]
[1674019529364,9.01400001,1586.9,1586.8,21.47248791]
[1674019529649,9.01400001,1586.9,1586.8,30.57680769]
[1674019529818,9.01400001,1586.9,1586.8,39.38810341]
[1674019530028,9.01400001,1586.9,1586.8,33.93171485]
[1674019530220,9.01400001,1586.9,1586.8,32.83748791]
[1674019531471,9.01600001,1586.9,1586.8,32.83748791]
[1674019531679,9.01600001,1586.9,1586.8,24.46548791]
[1674019533883,7.8487654,1586.9,1586.8,24.46548791]
[1674019535421,0.01600001,1586.9,1586.8,24.46548791]
[1674019535568,0.012,1586.9,1586.8,24.46548791]
[1674019540256,0.12432507,1587.2,1586.8,24.46548791]
[1674019540404,0.12432507,1587.2,1586.9,6.63354879]
[1674019540608,0.12432507,1587.2,1587.0,18.90357]
[1674019544355,0.12432507,1587.2,1587.0,23.9062782]
[1674019544564,0.12432507,1587.2,1587.1,28.1001082]
[1674019544797,0.12432507,1587.2,1587.1,28.16112611]
[1674019545000,0.12432507,1587.2,1587.1,32.03852013]
[1674019547560,0.12432507,1587.2,1587.1,28.23081193]
[1674019547792,0.12432507,1587.2,1587.1,29.64852013]
[1674019548192,0.12432507,1587.2,1587.1,25.84081193]
[1674019549982,0.12432507,1587.2,1587.1,27.26281193]
[1674019551350,0.12432507,1587.2,1587.1,30.379436]
[1674019551561,0.11035972,1587.5,1587.2,1.5338051]
[1674019551780,0.11035972,1587.5,1587.3,34.91730574]
[1674019552098,0.11035972,1587.5,1587.4,32.2111994]
[1674019552572,0.11035972,1587.5,1587.4,31.55772519]
[1674019553154,0.11035972,1587.5,1587.4,27.74983281]
[1674019553611,0.11035972,1587.5,1587.4,26.10926124]
[1674019553807,0.11035972,1587.5,1587.4,29.69719897]
[1674019554031,1e-08,1587.8,1587.4,29.69719897]
[1674019554249,1e-08,1587.8,1587.7,1.415]
[1674019554394,1e-08,1587.8,1587.7,20.31023]
[1674019554768,1e-08,1587.8,1587.7,23.31023]
[1674019555091,1e-08,1587.8,1587.7,25.641253]
[1674019555801,1e-08,1587.8,1587.7,24.226253]
[1674019556345,1e-08,1587.8,1587.7,24.28727091]
[1674019558028,1e-08,1587.8,1587.7,25.70927091]
[1674019558338,1e-08,1587.8,1587.7,27.77201264]
[1674019558499,1e-08,1587.8,1587.7,25.71327091]
[1674019559118,1e-08,1587.8,1587.7,24.28727091]
[1674019561539,1e-08,1587.8,1587.7,18.95624791]
[1674019562539,1e-08,1587.8,1587.7,12.65783791]
[1674019562854,1e-08,1587.8,1587.7,6.35942791]
[1674019563069,1e-08,1587.8,1587.7,9.35942791]
[1674019563436,1e-08,1587.8,1587.7,12.55942791]
[1674019564692,1e-08,1587.8,1587.7,9.55942791]
[1674019565337,1e-08,1587.8,1587.7,3.26101791]
[1674019565585,2.5761501,1587.8,1587.7,3.26101791]
[1674019565846,5.69277417,1587.8,1587.7,3.26101791]
[1674019566057,18.28881417,1587.8,1587.7,3.26101791]
[1674019567352,7.34877417,1587.8,1587.2,0.075]
[1674019567686,1.421,1587.5,1587.2,6.37537]
[1674019567909,4.53762407,1587.5,1587.2,6.37537]
[1674019569163,1.44524949,1587.6,1587.2,12.67577]
[1674019569311,4.56187356,1587.6,1587.2,12.67577]
[1674019569526,4.56187356,1587.6,1587.2,18.97617]
[1674019569781,5.09154866,1587.6,1587.2,18.97617]
[1674019570626,5.15754866,1587.6,1587.2,18.91517]
[1674019575045,3.73654866,1587.6,1587.2,18.91517]
[1674019575955,17.76020866,1587.6,1587.2,0.014]
[1674019576371,3.11662407,1587.5,1587.2,0.014]
[1674019576704,0.31166241,1587.4,1587.2,0.014]
[1674019578288,0.31166241,1587.4,1587.2,0.05]
[1674019580721,0.31166241,1587.4,1587.2,6.35035]
[1674019580931,4.76036866,1587.6,1587.2,6.35035]
[1674019581250,3.11662407,1587.5,1587.2,6.35035]
[1674019583403,9.41585407,1587.5,1587.2,0.05]
[1674019584421,10.83685407,1587.5,1587.2,0.05]
[1674019584766,1.08368541,1587.4,1587.2,0.05]
[1674019591154,10.90285407,1587.5,1587.2,0.05]
[1674019591488,17.20225407,1587.5,1587.2,0.05]
[1674019592628,15.78125407,1587.5,1587.2,0.05]
[1674019592807,1.416,1587.4,1587.2,0.05]
[1674019593232,2.427,1587.3,1587.2,0.05]
[1674019594074,4.24130441,1587.3,1587.2,0.05]
[1674019594276,3.24130441,1587.3,1587.2,0.05]
[1674019595038,3.24130441,1587.3,1587.0,15.40534]
[1674019595252,1.427,1587.3,1587.0,15.40534]
[1674019597448,1.427,1587.3,1587.0,21.70653]
[1674019598212,1.427,1587.3,1587.0,23.34775561]
[1674019598423,1.427,1587.3,1587.0,26.44775561]
[1674019599671,1.493,1587.4,1587.0,26.44775561]
[1674019599848,0.066,1587.4,1587.2,6.3004]
[1674019601639,0.0628627,1587.4,1587.2,6.3004]
[1674019609129,0.0628627,1587.4,1587.1,16.88704055]
[1674019609529,7.02269382,1587.5,1587.1,15.31184556]
[1674019609776,10.13931789,1587.5,1587.1,15.31184556]
[1674019610793,10.13931789,1587.5,1587.1,16.9530989]
[1674019611228,10.13931789,1587.5,1587.1,16.95309906]
[1674019612820,11.55531789,1587.5,1587.1,16.95309906]
[1674019613838,5.25606789,1587.5,1587.1,16.95309906]
[1674019614098,5.25606789,1587.5,1587.2,1.69530991]
[1674019614259,5.25606789,1587.5,1587.1,23.25366906]
[1674019614796,11.55530789,1587.5,1587.2,1.09414027]
[1674019616511,11.55530789,1587.5,1587.1,20.6088935]
[1674019616855,11.55530789,1587.5,1587.1,18.96764]
[1674019617524,0.66058112,1587.4,1587.1,6.3665]
[1674019617739,5.03169558,1587.4,1587.1,0.066]
[1674019617938,6.03169558,1587.4,1587.1,0.066]
[1674019618390,1.427,1587.3,1587.1,0.066]
[1674019618607,2.427,1587.3,1587.1,0.066]
[1674019618826,3.53279956,1587.3,1587.1,0.066]
[1674019619046,1.427,1587.3,1587.1,0.066]
[1674019619420,4.54362407,1587.3,1587.1,0.066]
[1674019619633,4.53762407,1587.2,1587.1,0.066]
[1674019619837,5.53762407,1587.2,1587.1,0.066]
[1674019620160,11.83802407,1587.2,1587.1,0.066]
[1674019620370,14.48929059,1587.2,1587.1,0.066]
[1674019620604,15.14987171,1587.2,1587.1,0.066]
[1674019621765,14.14987171,1587.2,1587.1,0.06367241]
[1674019623330,20.45027171,1587.2,1587.1,0.06367241]
[1674019624774,19.78969059,1587.2,1587.1,0.06367241]
[1674019625457,27.94642829,1587.2,1587.1,0.06367241]
[1674019625767,29.69392929,1587.2,1587.1,0.06367241]
[1674019626831,29.42674708,1587.2,1587.0,3.1]
[1674019627138,7.71629878,1587.1,1587.0,3.1]
[1674019627446,26.61869878,1587.1,1587.0,3.1]
[1674019628599,20.31789878,1587.1,1587.0,3.1]
[1674019630496,10.84442407,1587.1,1587.0,3.1]
[1674019630690,9.41742407,1587.1,1587.0,3.1]
[1674019634786,9.48028677,1587.1,1587.0,3.1]
[1674019640837,0.0628627,1587.1,1587.0,3.1]
[1674019641279,0.002,1587.1,1587.0,3.1]
[1674019641493,6.3632627,1587.2,1587.0,3.1]
[1674019641703,9.47988677,1587.2,1587.0,3.1]
[1674019646790,19.40553145,1587.2,1587.0,3.1]
[1674019649776,0.0628627,1587.2,1587.0,3.1]
[1674019649984,0.0628627,1587.2,1587.0,9.40112]
[1674019650194,1e-08,1587.2,1587.0,15.70231]
[1674019650505,1e-08,1587.2,1587.1,0.0302202]
[1674019650863,1e-08,1587.2,1587.1,6.3310202]
[1674019652244,1e-08,1587.2,1587.1,9.61616322]
[1674019652616,1e-08,1587.2,1587.1,3.31536322]
[1674019654342,1e-08,1587.2,1587.1,0.0302202]
[1674019656664,0.012,1587.2,1587.1,0.0302202]
[1674019667373,15.72942407,1587.2,1587.0,3.16567241]
[1674019667709,15.71822407,1587.1,1587.0,3.16567241]
[1674019668064,18.12998715,1587.1,1587.0,3.16567241]
[1674019668238,19.55698715,1587.1,1587.0,3.16567241]
[1674019673319,19.55698715,1587.1,1587.0,3.16272616]
[1674019673529,19.62098716,1587.1,1587.0,3.09705375]
[1674019675417,13.32018716,1587.1,1587.0,3.09705375]
[1674019675575,0.06400001,1587.1,1587.0,3.09705375]
[1674019690345,7.36440001,1587.2,1587.0,3.09705375]
[1674019690653,9.48102408,1587.2,1587.0,3.09705375]
[1674019693516,10.14103083,1587.2,1587.0,3.09705375]
[1674019694421,9.48102408,1587.2,1587.0,3.09705375]
[1674019723573,3.18062408,1587.2,1587.0,3.09705375]
[1674019723928,3.11662407,1587.2,1587.0,3.09705375]
[1674019730247,7.02420676,1587.3,1587.0,3.09705375]
[1674019730532,0.72400676,1587.3,1587.0,6.30119]
[1674019732469,0.72400676,1587.3,1587.0,9.32522317]
[1674019733144,0.72400676,1587.3,1587.0,10.96671822]
[1674019734169,1.72400676,1587.3,1587.0,10.96671822]
[1674019735055,2.71405882,1587.3,1587.0,10.96671822]
[1674019736272,0.66000675,1587.2,1587.0,6.30119]
[1674019738544,0.66000675,1587.2,1586.9,24.47263211]
[1674019738545,0.66000675,1587.2,1586.9,30.77418211]
[1674019738751,3.11662407,1587.1,1586.9,10.68273211]
[1674019739062,0.31166241,1587.0,1586.9,0.06567241]
[1674019739273,16.37864082,1587.1,1586.9,0.06567241]
[1674019739799,16.37864082,1587.1,1586.8,10.79517241]
[1674019739800,16.44264083,1587.1,1586.8,10.79517241]
[1674019740160,15.78263408,1587.1,1586.8,10.79517241]
[1674019740585,16.44264083,1587.1,1586.8,10.79517241]
[1674019740857,16.44264083,1587.1,1586.8,13.89517241]
[1674019741213,15.78263408,1587.1,1586.8,13.89517241]
[1674019741465,18.81595012,1587.1,1586.8,13.89517241]
[1674019743172,18.15594337,1587.1,1586.8,13.89517241]
[1674019744388,18.81595012,1587.1,1586.8,13.89517241]
[1674019744921,18.15594337,1587.1,1586.8,13.89517241]
[1674019749992,18.81595012,1587.1,1586.8,13.89517241]
[1674019750154,18.15594337,1587.1,1586.8,13.89517241]
[1674019750778,18.81595012,1587.1,1586.8,13.89517241]
[1674019751198,18.15594337,1587.1,1586.8,13.89517241]
[1674019751764,18.81595012,1587.1,1586.8,13.89517241]
[1674019754666,5.65822583,1587.0,1586.8,3.16236286]
[1674019754925,12.60318,1586.9,1586.8,3.16236286]
[1674019756742,15.71980407,1586.9,1586.8,3.16236286]
[1674019756941,22.02139407,1586.9,1586.8,3.16236286]
[1674019757131,24.69579886,1586.9,1586.8,3.16236286]
[1674019758161,26.12079886,1586.9,1586.8,3.16236286]
[1674019758375,26.78080561,1586.9,1586.8,3.16236286]
[1674019762014,27.11085092,1586.9,1586.8,3.16236286]
[1674019762157,27.11085092,1586.9,1586.4,0.05993203]
[1674019762158,2.71108509,1586.8,1586.4,0.05993203]
[1674019762367,1.185,1586.5,1586.4,0.05993203]
[1674019762579,4.30162407,1586.5,1586.4,0.05993203]
[1674019762789,15.72298407,1586.5,1586.4,0.05993203]
[1674019763248,22.02616407,1586.5,1586.4,0.05993203]
[1674019763420,24.44980283,1586.5,1586.4,0.05993203]
[1674019764320,25.64480283,1586.5,1586.4,0.05993203]
[1674019764793,25.87480283,1586.5,1586.4,0.05993203]
[1674019765551,25.93880284,1586.5,1586.4,0.05993203]
[1674019767259,27.13380284,1586.5,1586.4,0.05993203]
[1674019768097,30.13380284,1586.5,1586.4,0.05993203]
[1674019768790,38.21360284,1586.5,1586.4,0.05993203]
[1674019772811,37.01860284,1586.5,1586.4,0.05993203]
[1674019779100,38.21360284,1586.5,1586.4,0.05993203]
[1674019783005,37.01860284,1586.5,1586.4,0.05993203]
[1674019785920,37.01860284,1586.5,1586.4,0.05711223]
[1674019786169,37.01860284,1586.5,1586.4,1.15511223]
[1674019786170,0.06400001,1586.5,1586.4,1.15511223]
[1674019789332,12.66920001,1586.7,1586.4,1.15511223]
[1674019789492,15.78582408,1586.7,1586.5,1.193]
[1674019791124,15.78582408,1586.7,1586.4,1.24011223]
[1674019791865,22.08842408,1586.7,1586.4,1.24011223]
[1674019792874,3.11662407,1586.6,1586.4,0.05711223]
[1674019793060,15.72298407,1586.5,1586.4,0.05711223]
[1674019794854,22.02616407,1586.5,1586.4,0.05711223]
[1674019795325,22.25616407,1586.5,1586.4,0.05711223]
[1674019795483,24.48178048,1586.5,1586.4,0.05711223]
[1674019796597,24.54578049,1586.5,1586.4,0.05711223]
[1674019796905,24.54278033,1586.5,1586.4,0.05711223]
[1674019802804,25.20254512,1586.5,1586.4,0.05711223]
[1674019806924,24.54278033,1586.5,1586.4,0.05711223]
[1674019810376,9.48080392,1586.5,1586.4,1.15511223]
[1674019811706,9.48080392,1586.5,1586.4,0.05711223]
[1674019815891,9.48080392,1586.5,1586.4,1.15511223]
[1674019816054,3.17762392,1586.5,1586.4,1.15511223]
[1674019816246,0.06400001,1586.5,1586.4,1.15511223]
[1674019816454,0.06400001,1586.5,1586.4,1.39445083]
[1674019817639,0.06400001,1586.5,1586.4,0.29645083]
[1674019817830,0.06400001,1586.5,1586.4,1.39445083]
[1674019818045,0.06400001,1586.5,1586.4,0.29645083]
[1674019819737,0.06400001,1586.5,1586.4,1.39445083]
[1674019821014,0.06400001,1586.5,1586.4,2.53145083]
[1674019821688,1e-08,1586.5,1586.4,4.92145083]
[1674019822017,1e-08,1586.5,1586.4,6.01611052]
[1674019822949,6.30249001,1586.7,1586.4,4.92545083]
[1674019823166,0.06,1586.5,1586.4,3.79245083]
[1674019823373,0.06,1586.5,1586.4,4.98645083]
[1674019826376,0.06,1586.5,1586.4,4.92045083]
[1674019827627,0.06,1586.5,1586.4,3.72645083]
[1674019827832,0.06,1586.5,1586.4,1.49145083]
[1674019828083,0.06,1586.5,1586.4,0.29645083]
[1674019829615,0.06,1586.5,1586.4,1.39445083]
[1674019830879,6.30281,1586.6,1586.4,1.39445083]
[1674019830880,6.36681001,1586.6,1586.4,1.39445083]
[1674019831158,6.36681001,1586.6,1586.4,1.15511223]
[1674019831933,6.36681001,1586.6,1586.4,0.05711223]
[1674019838511,0.06400001,1586.6,1586.4,0.05711223]
[1674019843609,15.78571408,1586.7,1586.4,0.05711223]
[1674019846274,16.44547887,1586.7,1586.4,0.05711223]
[1674019854349,17.43512606,1586.7,1586.4,0.05711223]
[1674019854526,16.44547887,1586.7,1586.4,0.05711223]
[1674019854734,17.43512606,1586.7,1586.4,0.05711223]
[1674019855274,16.44547887,1586.7,1586.4,0.05711223]
[1674019855833,17.43512606,1586.7,1586.4,0.05711223]
[1674019856048,16.44547887,1586.7,1586.4,0.05711223]
[1674019856220,17.43512606,1586.7,1586.4,0.05711223]
[1674019860295,16.44547887,1586.7,1586.4,0.05711223]
[1674019864082,0.65976479,1586.6,1586.4,0.05711223]
[1674019864295,6.96257479,1586.6,1586.4,0.05711223]
[1674019865406,7.0265748,1586.6,1586.4,0.05711223]
[1674019865721,16.44600887,1586.6,1586.4,0.05711223]
[1674019865908,6.30318,1586.5,1586.4,0.05344774]
[1674019866126,8.60754568,1586.5,1586.4,0.05344774]
[1674019866311,7.94778089,1586.5,1586.4,0.05344774]